fUSD/lending_fUSD_20260327
["ID","MTS","AMOUNT","RATE_DAILY","PERIOD"]
[418949184,1774621842984,-27302.0356854,0.0004095,60]
[418949187,1774621843175,-7470.05577332,0.0004095,60]
[418949188,1774621843187,-491.4429511,0.0004095,60]
[418949189,1774621843203,-10560.53160195,0.0004095,60]
[418949190,1774621843219,-338.11044136,0.0004095,60]
[418949191,1774621843231,-974.74442038,0.0004095,60]
[418949192,1774621843242,-263.36647689,0.0004095,60]
[418949193,1774621843254,-297.32193,0.0004095,60]
[418949194,1774621843277,-871.56678708,0.0004095,60]
[418949201,1774621845791,-1068.14939657,0.0004095,60]
[418949202,1774621846096,-1390.0,0.0004095,60]
[418949203,1774621846108,-6586.4,0.0004095,60]
[418949204,1774621846120,-30938.52654192,0.0004095,60]
[418949205,1774621846130,-323.011861,0.00041013,21]
[418949206,1774621846143,-415.30096,0.00041078,21]
[418949207,1774621846152,-500.0,0.00041095,2]
[418949208,1774621846162,-621.00845446,0.00041095,17]
[418949209,1774621846172,-270.76,0.00041095,17]
[418949210,1774621846181,-500.0,0.00041095,17]
[418949211,1774621846191,-188.27629725,0.00041095,17]
[418949212,1774621846201,-476.22348786,0.00041095,17]
[418949213,1774621846211,-284.78316435,0.00041095,17]
[418949214,1774621846220,-500.0,0.00041095,17]
[418949215,1774621846230,-604.77586,0.00041095,17]
[418949216,1774621846239,-500.0,0.00041095,17]
[418949217,1774621846248,-500.0,0.00041095,7]
[418949218,1774621846258,-500.0,0.00041095,17]
[418949219,1774621846267,-500.0,0.00041095,17]
[418949220,1774621846276,-551.46,0.00041095,17]
[418949221,1774621846287,-700.34,0.00041095,30]
[418949222,1774621846296,-193.50149756,0.00041095,17]
[418949223,1774621846307,-500.0,0.00041095,17]
[418949224,1774621846316,-500.0,0.00041095,17]
[418949225,1774621846326,-500.0,0.00041095,17]
[418949226,1774621846336,-500.0,0.00041095,7]
[418949227,1774621846345,-500.0,0.00041095,17]
[418949228,1774621846355,-500.0,0.00041095,17]
[418949229,1774621846364,-500.0,0.00041095,17]
[418949230,1774621846375,-283.40892847,0.00041095,17]
[418949231,1774621846384,-500.0,0.00041095,7]
[418949232,1774621846394,-500.0,0.00041095,17]
[418949233,1774621846403,-500.0,0.00041095,17]
[418949234,1774621846413,-500.0,0.00041095,17]
[418949235,1774621846422,-223.0,0.00041096,30]
[418949237,1774621846432,-220.0,0.00041096,30]
[418949239,1774621846441,-214.0,0.00041096,30]
[418949241,1774621846451,-216.0,0.00041096,30]
[418949242,1774621846460,-219.0,0.00041096,30]
[418949243,1774621846469,-2116.0,0.00041096,120]
[418949244,1774621846479,-168.0,0.00041152,2]
[418949245,1774621846488,-2000.0,0.000412,2]
[418949246,1774621846497,-500.0,0.00041369,2]
[418949247,1774621846507,-500.0,0.00041369,17]
[418949248,1774621846516,-500.0,0.00041369,17]
[418949249,1774621846526,-236.06626776,0.00041369,17]
[418949250,1774621846536,-500.0,0.00041369,7]
[418949251,1774621846545,-500.0,0.00041369,17]
[418949252,1774621846555,-500.0,0.00041369,17]
[418949253,1774621846564,-551.46,0.00041369,17]
[418949254,1774621846574,-700.34,0.00041369,30]
[418949255,1774621846584,-500.0,0.00041369,17]
[418949256,1774621846594,-500.0,0.00041369,17]
[418949257,1774621846604,-500.0,0.00041369,17]
[418949258,1774621846614,-500.0,0.00041369,7]
[418949259,1774621846625,-500.0,0.00041369,17]
[418949260,1774621846635,-500.0,0.00041369,17]
[418949261,1774621846644,-624.71044746,0.00041369,17]
[418949262,1774621846654,-500.0,0.00041369,7]
[418949263,1774621846664,-500.0,0.00041369,17]
[418949264,1774621846673,-101.44451659,0.00041369,17]
[418949271,1774621846842,-398.55548341,0.00041369,17]
[418949272,1774621846851,-500.0,0.00041369,17]
[418949273,1774621846860,-5579.08913418,0.00041464,15]
[418949274,1774621846870,-1373.4151582,0.00041561,2]
[418949275,1774621846879,-500.0,0.00041643,2]
[418949276,1774621846888,-500.0,0.00041643,17]
[418949277,1774621846898,-500.0,0.00041643,17]
[418949278,1774621846907,-500.0,0.00041643,7]
[418949279,1774621846917,-250.62150314,0.00041643,17]
[418949280,1774621846926,-551.46,0.00041643,17]
[418949281,1774621846935,-700.34,0.00041643,30]
[418949282,1774621846944,-430.23102107,0.00041643,17]
[418949283,1774621846956,-69.76897893,0.00041643,17]
[418949284,1774621846966,-242.25585798,0.00041643,7]
[418949285,1774621846975,-7297.48928144,0.0004175,15]
[418949286,1774621846985,-10000.0,0.00041849,2]
[418949287,1774621846994,-5000.0,0.0004185,120]
[418949288,1774621847003,-212.45462386,0.000419,8]
[418949289,1774621847013,-550.30736831,0.00041905,17]
[418949290,1774621847023,-500.0,0.00041905,17]
[418949291,1774621847033,-500.0,0.00041905,17]
[418949292,1774621847043,-500.0,0.00041905,17]
[418949293,1774621847052,-500.0,0.00041905,17]
[418949294,1774621847063,-500.0,0.00041905,17]
[418949295,1774621847072,-500.0,0.00041905,17]
[418949296,1774621847082,-500.0,0.00041905,17]
[418949297,1774621847091,-500.0,0.00041905,17]
[418949298,1774621847100,-500.0,0.00041905,17]
[418949299,1774621847109,-609.27721092,0.00041905,14]
[418949300,1774621847119,-500.0,0.00041905,17]
[418949301,1774621847128,-282.5054457,0.00041915,31]
[418949302,1774621847138,-500.0,0.00041915,31]
[418949303,1774621847148,-500.0,0.00041915,31]
[418949304,1774621847158,-500.0,0.00041915,31]
[418949305,1774621847167,-313.75882902,0.00041915,31]
[418949306,1774621847177,-500.0,0.00041915,31]
[418949307,1774621847186,-500.0,0.00041915,31]
[418949308,1774621847196,-500.0,0.00041915,31]
[418949309,1774621847205,-500.0,0.00041915,31]
[418949310,1774621847215,-500.0,0.00041915,31]
[418949311,1774621847224,-500.0,0.00041915,31]
[418949312,1774621847234,-500.0,0.00041915,31]
[418949313,1774621847243,-500.0,0.00041915,31]
[418949314,1774621847252,-500.0,0.00041915,31]
[418949315,1774621847261,-500.0,0.00041915,31]
[418949316,1774621847271,-500.0,0.00041915,31]
[418949317,1774621847281,-500.0,0.00041915,31]
[418949318,1774621847291,-159.21548613,0.00041915,31]
[418949319,1774621847301,-500.0,0.00041915,31]
[418949320,1774621847310,-500.0,0.00041915,31]
[418949321,1774621847319,-500.0,0.00041916,17]
[418949322,1774621847330,-500.0,0.00041916,17]
[418949323,1774621847340,-500.0,0.00041916,17]
[418949324,1774621847350,-500.0,0.00041916,17]
[418949325,1774621847359,-500.0,0.00041916,17]
[418949326,1774621847369,-500.0,0.00041916,17]
[418949327,1774621847378,-500.0,0.00041916,17]
[418949328,1774621847387,-500.0,0.00041916,17]
[418949329,1774621847397,-515.0416559,0.00041916,17]
[418949330,1774621847406,-500.0,0.00041916,2]
[418949331,1774621847416,-539.4623366,0.00041916,17]
[418949332,1774621847425,-500.0,0.00041916,17]
[418949333,1774621847436,-500.0,0.00041916,17]
[418949334,1774621847445,-500.0,0.00041916,17]
[418949335,1774621847465,-500.0,0.00041916,17]
[418949336,1774621847476,-372.97646579,0.00041916,17]
[418949337,1774621847486,-179.90833105,0.00041916,17]
[418949338,1774621847496,-500.0,0.00041916,17]
[418949339,1774621847505,-500.0,0.00041916,17]
[418949340,1774621847515,-500.0,0.00041916,17]
[418949341,1774621847525,-500.0,0.00041916,17]
[418949342,1774621847536,-500.0,0.00041916,17]
[418949343,1774621847546,-500.0,0.00041916,17]
[418949344,1774621847556,-500.0,0.00041916,17]
[418949345,1774621847566,-500.0,0.00041916,17]
[418949346,1774621847576,-500.0,0.00041916,17]
[418949347,1774621847586,-500.0,0.00041916,2]
[418949348,1774621847596,-500.0,0.00041916,17]
[418949349,1774621847605,-500.0,0.00041916,17]
[418949350,1774621847615,-500.0,0.00041916,17]
[418949351,1774621847625,-500.0,0.00041916,17]
[418949352,1774621847634,-1557.12,0.00041916,17]
[418949353,1774621847643,-500.0,0.00041916,17]
[418949354,1774621847653,-500.0,0.00041916,17]
[418949355,1774621847662,-500.0,0.00041916,17]
[418949356,1774621847672,-504.94464831,0.00041916,17]
[418949357,1774621847681,-500.0,0.00041916,17]
[418949358,1774621847691,-500.0,0.00041916,17]
[418949359,1774621847700,-500.0,0.00041916,17]
[418949360,1774621847710,-500.0,0.00041916,17]
[418949361,1774621847720,-500.0,0.00041916,17]
[418949362,1774621847731,-500.0,0.00041916,17]
[418949363,1774621847740,-500.0,0.00041916,17]
[418949364,1774621847750,-500.0,0.00041916,17]
[418949365,1774621847760,-500.0,0.00041916,17]
[418949366,1774621847771,-500.0,0.00041916,17]
[418949367,1774621847781,-500.0,0.00041916,17]
[418949368,1774621847791,-500.0,0.00041916,17]
[418949369,1774621847801,-307.74181907,0.00041916,17]
[418949370,1774621847810,-500.0,0.00041916,17]
[418949371,1774621847820,-500.0,0.00041916,17]
[418949372,1774621847830,-618.57546876,0.00041916,17]
[418949373,1774621847839,-621.55,0.00041916,17]
[418949374,1774621847849,-500.0,0.00041916,17]
[418949375,1774621847858,-500.0,0.00041916,17]
[418949376,1774621847868,-514.0598299,0.00041916,17]
[418949377,1774621847879,-500.0,0.00041916,17]
[418949378,1774621847888,-509.90292085,0.00041916,17]
[418949379,1774621847899,-500.0,0.00041916,17]
[418949380,1774621847908,-500.0,0.00041916,17]
[418949381,1774621847918,-500.0,0.00041916,17]
[418949382,1774621847927,-500.0,0.00041916,17]
[418949383,1774621847937,-500.0,0.00041916,17]
[418949384,1774621847946,-378.67239832,0.00041916,17]
[418949385,1774621847956,-407.93317414,0.00041916,17]
[418949386,1774621847967,-500.0,0.00041916,17]
[418949387,1774621847977,-500.0,0.00041916,17]
[418949388,1774621847987,-500.0,0.00041916,17]
[418949389,1774621847996,-248.66202539,0.00041916,120]
[418949390,1774621848006,-500.0,0.00041916,17]
[418949391,1774621848016,-500.0,0.00041916,17]
[418949392,1774621848026,-500.0,0.00041916,17]
[418949393,1774621848036,-500.0,0.00041916,17]
[418949394,1774621848046,-500.0,0.00041916,17]
[418949395,1774621848056,-500.0,0.00041916,17]
[418949396,1774621848067,-500.0,0.00041916,17]
[418949397,1774621848080,-500.0,0.00041916,17]
[418949398,1774621848089,-500.0,0.00041916,17]
[418949399,1774621848099,-500.0,0.00041916,17]
[418949400,1774621848107,-500.0,0.00041916,17]
[418949401,1774621848116,-500.0,0.00041916,17]
[418949402,1774621848126,-334.29656334,0.00041916,17]
[418949403,1774621848135,-500.0,0.00041916,17]
[418949404,1774621848145,-500.0,0.00041916,17]
[418949405,1774621848154,-500.0,0.00041916,17]
[418949406,1774621848164,-500.0,0.00041916,17]
[418949407,1774621848173,-500.0,0.00041916,17]
[418949408,1774621848183,-500.0,0.00041916,17]
[418949409,1774621848193,-305.53730421,0.00041916,17]
[418949410,1774621848203,-500.0,0.00041916,17]
[418949411,1774621848212,-500.0,0.00041916,17]
[418949412,1774621848222,-2496.37,0.00041916,2]
[418949413,1774621848233,-500.0,0.00041917,17]
[418949414,1774621848243,-500.0,0.00041917,17]
[418949415,1774621848252,-500.0,0.00041917,7]
[418949416,1774621848262,-551.46,0.00041917,17]
[418949417,1774621848272,-700.34,0.00041917,30]
[418949418,1774621848283,-500.0,0.00041917,17]
[418949419,1774621848292,-300.21,0.00041918,14]
[418949420,1774621848302,-500.0,0.00041938,17]
[418949421,1774621848312,-600.75550948,0.00041938,17]
[418949422,1774621848322,-500.0,0.00041938,17]
[418949423,1774621848331,-500.0,0.00041938,17]
[418949424,1774621848341,-500.0,0.00041938,17]
[418949425,1774621848354,-500.0,0.00041938,17]
[418949426,1774621848364,-500.0,0.00041938,17]
[418949427,1774621848373,-500.0,0.00041938,17]
[418949428,1774621848383,-500.0,0.00041938,17]
[418949429,1774621848394,-218.11052384,0.00041938,17]
[418949430,1774621848404,-862.7,0.00041938,17]
[418949431,1774621848413,-562.03252311,0.00041938,17]
[418949432,1774621848422,-209.82477677,0.00041938,17]
[418949433,1774621848434,-500.0,0.00041938,17]
[418949434,1774621848443,-634.50329308,0.00041938,17]
[418949435,1774621848453,-272.93227288,0.00041938,17]
[418949436,1774621848462,-265.57223625,0.00041938,17]
[418949437,1774621848472,-500.0,0.00041938,17]
[418949438,1774621848481,-500.0,0.00041938,17]
[418949439,1774621848491,-500.0,0.00041938,17]
[418949440,1774621848500,-500.0,0.00041938,17]
[418949441,1774621848510,-641.12008392,0.00041938,17]
[418949442,1774621848519,-471.21260185,0.00041938,17]
[418949443,1774621848528,-500.0,0.00041938,17]
[418949444,1774621848538,-718.61,0.00041938,17]
[418949445,1774621848548,-171.57743705,0.00041938,17]
[418949446,1774621848557,-500.0,0.00041938,17]
[418949447,1774621848566,-500.0,0.00041938,17]
[418949448,1774621848576,-281.31209237,0.00041938,17]
[418949449,1774621848585,-500.0,0.00041938,17]
[418949450,1774621848594,-152.15910831,0.00041938,17]
[418949451,1774621848603,-500.0,0.00041938,17]
[418949452,1774621848613,-500.0,0.00041938,17]
[418949453,1774621848622,-500.0,0.00041938,17]
[418949454,1774621848632,-500.0,0.00041938,17]
[418949455,1774621848641,-364.60393986,0.00041938,17]
[418949456,1774621848650,-1763.17,0.00041938,17]
[418949457,1774621848660,-500.0,0.00041938,17]
[418949458,1774621848669,-638.22877001,0.00041938,17]
[418949459,1774621848679,-500.0,0.00041938,17]
[418949460,1774621848688,-500.0,0.00041938,17]
[418949461,1774621848697,-500.0,0.00041938,17]
[418949462,1774621848706,-220.57651455,0.00041938,17]
[418949463,1774621848715,-500.0,0.00041938,17]
[418949464,1774621848724,-500.0,0.00041938,17]
[418949465,1774621848734,-500.0,0.00041938,17]
[418949466,1774621848743,-500.0,0.00041938,17]
[418949467,1774621848752,-534.49,0.00041938,17]
[418949468,1774621848761,-500.0,0.00041938,17]
[418949469,1774621848770,-500.0,0.00041938,17]
[418949470,1774621848780,-500.0,0.00041938,17]
[418949471,1774621848789,-500.0,0.00041938,17]
[418949472,1774621848798,-321.64858559,0.00041938,17]
[418949473,1774621848808,-500.0,0.0004194,17]
[418949474,1774621848817,-500.0,0.0004194,17]
[418949475,1774621848827,-500.0,0.0004194,17]
[418949476,1774621848836,-500.0,0.0004194,17]
[418949477,1774621848845,-500.0,0.0004194,17]
[418949478,1774621848855,-500.0,0.0004194,17]
[418949479,1774621848864,-500.0,0.0004194,17]
[418949480,1774621848874,-500.0,0.0004194,17]
[418949481,1774621848883,-500.0,0.0004194,17]
[418949482,1774621848892,-500.0,0.0004194,17]
[418949483,1774621848902,-500.0,0.0004194,2]
[418949484,1774621848911,-500.0,0.0004194,17]
[418949485,1774621848920,-562.79356789,0.0004194,17]
[418949486,1774621848930,-500.0,0.0004194,17]
[418949487,1774621848939,-1239.77,0.0004194,2]
[418949488,1774621848949,-500.0,0.0004194,17]
[418949489,1774621848958,-500.0,0.0004194,17]
[418949490,1774621848968,-500.0,0.0004194,17]
[418949491,1774621848978,-500.0,0.0004194,17]
[418949492,1774621848987,-500.0,0.0004194,17]
[418949493,1774621848997,-500.0,0.0004194,17]
[418949494,1774621849006,-374.88744669,0.0004194,17]
[418949495,1774621849015,-500.0,0.0004194,17]
[418949496,1774621849024,-151.0,0.0004194,17]
[418949497,1774621849034,-144078.598276,0.0004194,4]
[418949498,1774621849043,-704.0,0.00041948,7]
[418949499,1774621849053,-598.64413385,0.00041948,17]
[418949500,1774621849063,-500.0,0.00041948,17]
[418949501,1774621849072,-237.14170911,0.00041948,17]
[418949502,1774621849082,-397.34283743,0.00041948,17]
[418949503,1774621849091,-580.82956105,0.00041948,17]
[418949504,1774621849101,-500.0,0.00041948,17]
[418949505,1774621849110,-500.0,0.00041948,2]
[418949506,1774621849120,-590.29679416,0.00041948,17]
[418949507,1774621849129,-500.0,0.00041948,17]
[418949508,1774621849139,-500.0,0.00041948,17]
[418949509,1774621849149,-232.7,0.00041948,17]
[418949510,1774621849158,-195.9035429,0.00041948,17]
[418949511,1774621849168,-270.11113081,0.00041948,17]
[418949512,1774621849177,-500.0,0.00041948,17]
[418949513,1774621849186,-500.0,0.00041948,17]
[418949514,1774621849196,-500.0,0.00041948,17]
[418949515,1774621849205,-260.96217533,0.00041948,17]
[418949516,1774621849214,-157.09813906,0.00041948,17]
[418949517,1774621849224,-165.2510565,0.00041948,17]
[418949518,1774621849234,-500.0,0.00041948,17]
[418949519,1774621849244,-236.22692276,0.00041948,17]
[418949520,1774621849254,-384.49750749,0.00041948,17]
[418949521,1774621849264,-169.0,0.00041948,17]
[418949522,1774621849273,-357.40835787,0.00041948,17]
[418949523,1774621849283,-500.0,0.00041948,17]
[418949524,1774621849292,-605.74573198,0.00041948,17]
[418949525,1774621849302,-500.0,0.00041948,17]
[418949526,1774621849468,-500.0,0.00041948,17]
[418949527,1774621849491,-500.0,0.00041948,17]
[418949528,1774621849501,-500.0,0.00041948,17]
[418949529,1774621849510,-500.0,0.00041948,17]
[418949530,1774621849519,-2571.41,0.00041948,2]
[418949531,1774621849528,-561.75130306,0.00041949,17]
[418949532,1774621849537,-500.0,0.00041949,2]
[418949533,1774621849547,-200.0,0.0004195,120]
[418949534,1774621849557,-602.0,0.0004195,7]
[418949535,1774621849566,-27724.88045452,0.0004195,30]
[418949536,1774621849580,-215596.42456481,0.0004195,30]
[418949537,1774621849591,-5182.49999911,0.0004195,30]
[418949552,1774622954140,-229.91,0.000224,14]
[418949553,1774622954161,-61.33715569,0.00022848,2]
[418949554,1774623031958,-463.03284431,0.00022848,2]
[418949555,1774623031968,-2000.0,0.000362,2]
[418949556,1774623031978,-280.0,0.00038356,2]
[418949557,1774623031989,-2000.0,0.000399,2]
[418949558,1774623032190,-2000.0,0.00040193,2]
[418949559,1774623032206,-320.0,0.00040557,120]
[418949560,1774623032216,-14413.86282726,0.00040681,2]
[418949561,1774623032228,-454.02947525,0.00040681,2]
[418949562,1774623032256,-706.49,0.00040681,2]
[418949563,1774623032274,-110.71769749,0.00040681,2]
[418949564,1774623032285,-208.48722251,0.000407,15]
[418949565,1774623032298,-911.72705474,0.000407,15]
[418949566,1774623032315,-600.0,0.000407,15]
[418949573,1774623038048,-2743.05703013,0.000407,15]
[418949574,1774623038058,-3010.4138605,0.0004075,15]
[418949575,1774623038116,-421.15941052,0.0004075,15]
[418949576,1774623038132,-640.14698549,0.0004075,15]
[418949577,1774623038207,-2496.02009675,0.0004075,15]
[418949578,1774623038216,-1415.24,0.0004079,10]
[418949579,1774623038226,-2049.22,0.0004079,10]
[418949580,1774623038236,-1707.68,0.0004079,10]
[418949581,1774623038245,-1423.07,0.0004079,10]
[418949582,1774623038257,-1189.237,0.00040799,59]
[418949583,1774623038267,-160.21207796,0.00040799,31]
[418949584,1774623038276,-500.0,0.00040799,2]
[418949585,1774623038285,-20571.71096523,0.000408,2]
[418949586,1774623038334,-469.10245822,0.000408,2]
[418949587,1774623038346,-19468.68671659,0.000408,2]
[418949594,1774623041010,-1185.89,0.0004079,10]
[418949595,1774623041020,-50566.23410793,0.000408,2]
[418949596,1774623041032,-34805.69005842,0.000408,2]
[418949600,1774623043716,-1343.74845771,0.0004075,28]
[418949601,1774623043726,-119614.45529361,0.000408,2]
[418949602,1774623043735,-70447.1819,0.000408,2]
[418949603,1774623043745,-1000.0,0.0004085,120]
[418949604,1774623043754,-1000.0,0.0004085,2]
[418949605,1774623043765,-62362.66988483,0.000409,2]
[418949606,1774623043774,-219.63118032,0.00040948,31]
[418949607,1774623043784,-197.75381199,0.00040948,31]
[418949608,1774623043793,-500.0,0.00040948,31]
[418949609,1774623043803,-500.0,0.00040948,31]
[418949610,1774623043812,-500.0,0.00040948,31]
[418949611,1774623043821,-500.0,0.00040948,31]
[418949612,1774623043831,-500.0,0.00040948,31]
[418949613,1774623043840,-500.0,0.00040948,31]
[418949614,1774623043849,-500.0,0.00040948,31]
[418949615,1774623043858,-500.0,0.00040948,31]
[418949616,1774623043868,-500.0,0.00040948,31]
[418949618,1774623043877,-500.0,0.00040948,31]
[418949620,1774623043887,-266.2869746,0.00040948,31]
[418949622,1774623043896,-500.0,0.00040949,2]
[418949623,1774623043906,-174497.0,0.0004095,60]
[418949624,1774623043916,-500.0,0.00041095,17]
[418949625,1774623043925,-500.0,0.00041095,17]
[418949626,1774623043935,-500.0,0.00041095,17]
[418949627,1774623043944,-500.0,0.00041095,17]
[418949628,1774623043954,-500.0,0.00041095,17]
[418949629,1774623043963,-500.0,0.00041095,17]
[418949630,1774623043972,-500.0,0.00041095,17]
[418949632,1774623043982,-500.0,0.00041095,17]
[418949633,1774623043991,-500.0,0.00041095,17]
[418949634,1774623044000,-500.0,0.00041095,17]
[418949635,1774623044010,-500.0,0.00041095,17]
[418949636,1774623044019,-567.65856683,0.00041095,17]
[418949637,1774623044028,-500.0,0.00041095,17]
[418949638,1774623044037,-500.0,0.00041095,17]
[418949639,1774623044046,-500.0,0.00041095,7]
[418949640,1774623044056,-500.0,0.00041095,17]
[418949641,1774623044065,-500.0,0.00041095,17]
[418949642,1774623044075,-500.0,0.00041095,17]
[418949643,1774623044084,-500.0,0.00041095,17]
[418949644,1774623044093,-500.0,0.00041095,17]
[418949645,1774623044102,-500.0,0.00041095,17]
[418949646,1774623044112,-500.0,0.00041095,17]
[418949647,1774623044121,-500.0,0.00041095,17]
[418949648,1774623044130,-500.0,0.00041095,17]
[418949649,1774623044140,-500.0,0.00041095,17]
[418949650,1774623044149,-549.74225267,0.00041095,17]
[418949651,1774623044158,-536.05462601,0.00041095,17]
[418949652,1774623044167,-500.0,0.00041095,17]
[418949653,1774623044177,-519.47649758,0.00041095,17]
[418949654,1774623044186,-558.12531642,0.00041095,17]
[418949655,1774623044195,-500.0,0.00041095,2]
[418949656,1774623044204,-500.0,0.00041095,17]
[418949657,1774623044213,-2491.55,0.00041095,2]
[418949658,1774623044223,-500.0,0.00041095,17]
[418949659,1774623044232,-500.0,0.00041095,17]
[418949660,1774623044242,-500.0,0.00041095,17]
[418949661,1774623044251,-500.0,0.00041095,17]
[418949662,1774623044262,-500.0,0.00041095,17]
[418949663,1774623044271,-265.66403272,0.00041095,17]
[418949664,1774623044280,-500.0,0.00041095,17]
[418949665,1774623044290,-195.36907496,0.00041095,17]
[418949666,1774623044300,-500.0,0.00041095,17]
[418949667,1774623044309,-500.0,0.00041095,17]
[418949668,1774623044319,-500.0,0.00041095,17]
[418949669,1774623044328,-500.0,0.00041095,17]
[418949670,1774623044338,-500.0,0.00041095,17]
[418949671,1774623044347,-500.0,0.00041095,17]
[418949672,1774623044357,-500.0,0.00041095,17]
[418949673,1774623044367,-500.0,0.00041095,17]
[418949674,1774623044376,-500.0,0.00041095,17]
[418949675,1774623044385,-500.0,0.00041095,17]
[418949676,1774623044394,-500.0,0.00041095,17]
[418949677,1774623044403,-500.0,0.00041095,17]
[418949678,1774623044413,-500.0,0.00041095,17]
[418949679,1774623044423,-826.75,0.00041095,17]
[418949680,1774623044432,-500.0,0.00041095,17]
[418949681,1774623044442,-334.68230631,0.00041095,17]
[418949682,1774623044451,-535.21923255,0.00041095,17]
[418949683,1774623044460,-204.2991733,0.00041095,17]
[418949684,1774623044470,-206.26220018,0.00041095,17]
[418949685,1774623044479,-500.0,0.00041095,17]
[418949686,1774623044489,-596.5,0.00041095,17]
[418949687,1774623044498,-500.0,0.00041095,17]
[418949688,1774623044508,-500.0,0.00041095,17]
[418949689,1774623044517,-500.0,0.00041095,17]
[418949690,1774623044527,-575.89631967,0.00041095,17]
[418949691,1774623044536,-500.0,0.00041095,17]
[418949692,1774623044545,-500.0,0.00041095,17]
[418949693,1774623044554,-500.0,0.00041095,17]
[418949694,1774623044563,-500.0,0.00041095,17]
[418949695,1774623044572,-500.0,0.00041095,17]
[418949696,1774623044582,-688.67,0.00041095,17]
[418949697,1774623044593,-1689.7,0.00041095,17]
[418949698,1774623044603,-500.0,0.00041095,17]
[418949699,1774623044612,-500.0,0.00041095,17]
[418949700,1774623044622,-500.0,0.00041095,17]
[418949701,1774623044631,-500.0,0.00041095,17]
[418949702,1774623044640,-500.0,0.00041095,17]
[418949703,1774623044649,-500.0,0.00041095,17]
[418949704,1774623044658,-500.0,0.00041095,17]
[418949705,1774623044667,-500.0,0.00041095,17]
[418949706,1774623044677,-500.0,0.00041095,17]
[418949707,1774623044687,-500.0,0.00041095,17]
[418949708,1774623044695,-500.0,0.00041095,17]
[418949709,1774623044705,-500.0,0.00041095,17]
[418949710,1774623044714,-500.0,0.00041095,17]
[418949711,1774623044723,-185.56779901,0.00041095,17]
[418949712,1774623044733,-500.0,0.00041095,17]
[418949713,1774623044742,-500.0,0.00041095,17]
[418949714,1774623044752,-593.07514642,0.00041095,17]
[418949715,1774623044762,-500.0,0.00041095,17]
[418949716,1774623044771,-500.0,0.00041095,17]
[418949717,1774623044781,-500.0,0.00041095,17]
[418949718,1774623044791,-500.0,0.00041095,17]
[418949719,1774623044801,-500.0,0.00041095,17]
[418949720,1774623044811,-557.00551238,0.00041095,17]
[418949721,1774623044820,-500.0,0.00041095,17]
[418949722,1774623044831,-512.22,0.00041095,17]
[418949723,1774623044840,-500.0,0.00041095,17]
[418949724,1774623044851,-500.0,0.00041095,2]
[418949725,1774623044862,-500.0,0.00041095,17]
[418949726,1774623044871,-500.0,0.00041095,2]
[418949727,1774623044880,-217.21274123,0.00041095,17]
[418949728,1774623044889,-500.0,0.00041095,17]
[418949729,1774623044899,-500.0,0.00041095,17]
[418949730,1774623044908,-500.0,0.00041095,17]
[418949731,1774623044917,-1188.11,0.00041095,2]
[418949732,1774623044927,-500.0,0.00041095,17]
[418949733,1774623044936,-500.0,0.00041095,2]